[Event "Commonwealth Open 2019"]
[Site "Delhi"]
[Date "2019.07.01"]
[Round "3.18"]
[White "Anilkumar, O.T."]
[Black "Swayams, Mishra"]
[Result "0-1"]
[ECO "C55"]
[WhiteElo "1989"]
[BlackElo "2493"]
[Annotator "ChessBase"]
[PlyCount "126"]
[EventDate "2019.06.30"]
[EventType "swiss"]
[EventCountry "IND"]
[SourceTitle "playchess.com"]
[Source "ChessBase"]
[SourceQuality "1"]
[TimeControl "5400+30"]

1. e4 {[%emt 0:00:00]} e5 {[%emt 0:00:00]} 2. Nf3 {[%emt 0:00:00]} Nc6 {[%emt 0:00:00]} 3. Bc4 {[%emt 0:00:00]} Nf6 {[%emt 0:00:00]} 4. d3 {[%emt 0:00:00]} Be7 {[%emt 0:00:00]} 5. O-O {[%emt 0:00:03]} O-O {[%emt 0:00:00]} 6. c3 {[%emt 0:00:17]} d5 {[%emt 0:00:00]} 7. exd5 {[%emt 0:00:20]} Nxd5 {[%emt 0:00:00]} 8. h3 {[%emt 0:00:11]} Kh8 {[%emt 0:01:17]} 9. Re1 {[%emt 0:00:12]} f6 {[%emt 0:00:13]} 10. d4 {[%emt 0:00:41]} Nb6 {[%emt 0:00:39]} 11. Bb5 {[%emt 0:00:16]} exd4 {[%emt 0:01:34]} 12. cxd4 {[%emt 0:01:00]} Nb4 {[%emt 0:02:39]} 13. Nc3 {[%emt 0:04:59]} c6 {[%emt 0:01:32]} 14. Bf1 {[%emt 0:02:11]} Bf5 {[%emt 0:10:18]} 15. a3 {[%emt 0:04:28]} N4d5 {[%emt 0:02:10]} 16. Nh4 {[%emt 0:00:37]} Bd7 {[%emt 0:00:48]} 17. Bd3 {[%emt 0:00:11]} f5 {[%emt 0:01:32]} 18. Nf3 {[%emt 0:00:03]} Bf6 {[%emt 0:02:05]} 19. Ne5 {[%emt 0:00:54]} Bxe5 {[%emt 0:01:26]} 20. dxe5 {[%emt 0:00:50]} Be6 {[%emt 0:01:20]} 21. Ne2 {[%emt 0:00:22]} Qh4 {[%emt 0:01:06]} 22. f4 {[%emt 0:10:26]} Rad8 {[%emt 0:00:52]} 23. Rf1 {[%emt 0:00:10]} c5 {[%emt 0:02:04]} 24. b3 {[%emt 0:03:19]} a5 {[%emt 0:05:47]} 25. Qc2 {[%emt 0:01:21]} Qe7 {[%emt 0:05:48]} 26. Bb5 {[%emt 0:02:01]} Nc7 {[%emt 0:04:32]} 27. Bc4 {[%emt 0:00:23]} Nbd5 {[%emt 0:07:46]} 28. Bd2 {[%emt 0:01:15]} b6 {[%emt 0:06:14]} 29. Rad1 {[%emt 0:01:16]} Bc8 {[%emt 0:04:53]} 30. Nc3 {[%emt 0:07:18]} Bb7 {[%emt 0:01:37]} 31. Nxd5 {[%emt 0:04:05]} Nxd5 {[%emt 0:01:25]} 32. Bc1 {[%emt 0:02:21]} Bc6 {[%emt 0:07:16]} 33. Kh2 {[%emt 0:05:43]} h6 {[%emt 0:05:36]} 34. Rd3 {[%emt 0:14:30]} b5 {[%emt 0:00:44]} 35. Bxd5 {[%emt 0:00:13]} Bxd5 {[%emt 0:00:33]} 36. Rc3 {[%emt 0:04:19]} Be4 {[%emt 0:01:59]} 37. Qf2 {[%emt 0:00:18]} c4 38. bxc4 {[%emt 0:00:17]} bxc4 {[%emt 0:04:23]} 39. Be3 {[%emt 0:00:03]} Rc8 {[%emt 0:04:17]} 40. Bb6 {[%emt 0:00:32]} a4 {[%emt 0:00:32]} 41. Ba5 {[%emt 0:00:09]} Qe6 {[%emt 0:00:50]} 42. Rd1 {[%emt 0:08:49]} Bd3 {[%emt 0:01:14]} 43. Qd4 {[%emt 0:02:28]} Rc6 {[%emt 0:09:54]} 44. Bb4 {[%emt 0:00:33]} Rfc8 {[%emt 0:00:23]} 45. Rd2 {[%emt 0:00:16]} Kh7 {[%emt 0:00:25]} 46. Bd6 {[%emt 0:02:29]} Ra6 {[%emt 0:00:33]} 47. Rb2 {[%emt 0:03:52]} Ra5 48. Rb7 {[%emt 0:01:25]} Qd5 {[%emt 0:01:28]} 49. Qxd5 {[%emt 0:04:11]} Rxd5 {[%emt 0:00:01]} 50. Ra7 {[%emt 0:00:02]} Rd4 {[%emt 0:00:23]} 51. Rxa4 {[%emt 0:00:11]} Re4 {[%emt 0:01:42]} 52. Rb4 {[%emt 0:04:35]} Re8 {[%emt 0:01:01]} 53. h4 {[%emt 0:03:10]} Kg6 {[%emt 0:02:01]} 54. Bc5 {[%emt 0:01:52]} Kh5 {[%emt 0:00:14]} 55. Kh3 {[%emt 0:01:04]} Rxf4 {[%emt 0:00:22]} 56. g3 {[%emt 0:01:01]} Re4 {[%emt 0:00:14]} 57. Rb2 {[%emt 0:01:42]} R8xe5 {[%emt 0:00:47]} 58. Bd6 {[%emt 0:01:08]} Re6 {[%emt 0:00:08]} 59. Bf4 {[%emt 0:00:33]} g5 {[%emt 0:00:56]} 60. hxg5 {[%emt 0:00:02]} hxg5 {[%emt 0:00:06]} 61. Bc1 {[%emt 0:01:09]} Re2 {[%emt 0:00:19]} 62. Rxe2 {[%emt 0:00:05]} Rxe2 {[%emt 0:00:01]} 63. a4 {[%emt 0:00:50]} g4# {[%emt 0:00:03]} 0-1

[Event "Commonwealth Open 2019"]
[Site "Delhi"]
[Date "2019.07.01"]
[Round "3.19"]
[White "Saurabh, Anand"]
[Black "Sa, Kannan"]
[Result "0-1"]
[ECO "C00"]
[WhiteElo "2351"]
[BlackElo "1947"]
[Annotator "NA"]
[PlyCount "49"]
[EventDate "2019.06.30"]
[EventType "swiss"]
[EventCountry "IND"]
[SourceTitle "playchess.com"]
[Source "ChessBase"]
[SourceQuality "1"]
[TimeControl "5400+30"]

1. e4 {[%emt 0:00:00]} e6 {[%emt 0:00:16]} 2. d4 {[%emt 0:00:04]} b6 {[%emt 0:00:02]} 3. Nf3 {[%emt 0:01:32]} Bb7 {[%emt 0:00:08]} 4. Bd3 {[%emt 0:00:05]} Nf6 {[%emt 0:01:10]} 5. Qe2 {[%emt 0:00:08]} c5 {[%emt 0:01:10]} 6. c3 {[%emt 0:04:08]} cxd4 {[%emt 0:07:17]} 7. cxd4 {[%emt 0:01:49]} Nc6 {[%emt 0:01:20]} 8. a3 {[%emt 0:04:50]} d5 {[%emt 0:07:24]} 9. e5 {[%emt 0:00:16]} Ne4 {[%emt 0:02:47]} 10. O-O {[%emt 0:07:25]} Be7 {[%emt 0:05:11]} 11. Bxe4 {[%emt 0:03:44]} dxe4 {[%emt 0:00:22]} 12. Qxe4 {[%emt 0:00:08]} Qd7 {[%emt 0:03:15]} 13. Nc3 {[%emt 0:02:35]} O-O-O {[%emt 0:09:34]} 14. Rd1 {[%emt 0:01:10]} g5 {[%emt 0:06:48]} (14... Kb8 $14) 15. d5 {[%emt 0:06:06]} ({But not} 15. Bxg5 $6 Bxg5 16. Nxg5 Nxd4 $14) 15... Na5 {[%emt 0:01:21]} 16. Qc2 $16 {[%emt 0:01:55]} ({Much less strong is} 16. Nxg5 $6 exd5) (16. Bxg5 $18 Bxg5 17. Nxg5) 16... exd5 {[%emt 0:01:53]} 17. Nxg5 {[%emt 0:07:30]} Qc6 {[%emt 0:08:14]} 18. Qf5+ {[%emt 0:08:08]} Kb8 {[%emt 0:01:41]} 19. Ne2 {[%emt 0:06:54]} d4 {[%emt 0:01:57]} 20. Nf3 {[%emt 0:00:32]} Nb3 {[%emt 0:01:51]} 21. Rb1 {[%emt 0:01:29]} d3 {[%emt 0:05:16]} 22. Nf4 {[%emt 0:06:06]} Rhg8 {[%emt 0:06:09]} 23. Kf1 {[%emt 0:02:26]} d2 {[%emt 0:08:40]} 24. Nxd2 {[%emt 0:03:28]} Rxg2 {[%emt 0:07:22]} 25. Ke2 0-1

[Event "Commonwealth Open 2019"]
[Site "Delhi"]
[Date "2019.07.01"]
[Round "3.20"]
[White "Sanskriti, Goyal"]
[Black "Navalgund, Niranjan"]
[Result "0-1"]
[ECO "A50"]
[WhiteElo "1951"]
[BlackElo "2326"]
[Annotator "NA"]
[PlyCount "50"]
[EventDate "2019.06.30"]
[EventType "swiss"]
[EventCountry "IND"]
[SourceTitle "playchess.com"]
[Source "ChessBase"]
[SourceQuality "1"]
[TimeControl "5400+30"]

1. d4 {[%emt 0:08:33]} Nf6 {[%emt 0:00:23]} 2. c4 {[%emt 0:00:07]} Nc6 {[%emt 0:00:03]} 3. Nc3 {[%emt 0:00:50]} e5 {[%emt 0:00:03]} 4. d5 {[%emt 0:05:56]} Ne7 {[%emt 0:00:03]} 5. Nf3 {[%emt 0:04:07]} Ng6 {[%emt 0:00:05]} 6. e3 {[%emt 0:08:39]} Bc5 {[%emt 0:03:13]} 7. Bd3 {[%emt 0:06:24]} d6 {[%emt 0:00:21]} 8. a3 {[%emt 0:09:28]} a6 {[%emt 0:00:08]} 9. O-O {[%emt 0:04:08]} Ba7 {[%emt 0:03:52]} 10. h3 {[%emt 0:04:53]} Qe7 {[%emt 0:02:24]} 11. Bc2 {[%emt 0:01:41]} O-O {[%emt 0:03:45]} 12. b4 {[%emt 0:02:47]} Ne8 {[%emt 0:02:57]} 13. Ne2 {[%emt 0:05:16]} f5 {[%emt 0:04:15]} 14. Kh1 {[%emt 0:02:47]} Kh8 {[%emt 0:05:55]} 15. a4 {[%emt 0:03:54]} c6 {[%emt 0:07:44]} 16. a5 {[%emt 0:03:07]} cxd5 {[%emt 0:10:05]} 17. cxd5 {[%emt 0:00:01]} Nc7 {[%emt 0:01:19]} 18. Bb2 {[%emt 0:01:49]} e4 {[%emt 0:04:21]} 19. Ne1 {[%emt 0:03:53]} f4 {[%emt 0:05:05]} 20. exf4 {[%emt 0:00:33]} Nxf4 {[%emt 0:00:16]} 21. Bb3 {[%emt 0:02:30]} Nxh3 {[%emt 0:10:48]} 22. gxh3 {[%emt 0:01:04]} Qh4 {[%emt 0:01:01]} 23. Bd4 {[%emt 0:06:24]} Qxh3+ {[%emt 0:04:01]} 24. Kg1 {[%emt 0:00:05]} Bg4 {[%emt 0:01:30]} 25. f4 {[%emt 0:04:20]} Bxe2 {[%emt 0:00:48]} 0-1

[Event "Commonwealth Open 2019"]
[Site "Delhi"]
[Date "2019.07.01"]
[Round "3.21"]
[White "Wagh, Suyog"]
[Black "Ashwin, Hariharan"]
[Result "1-0"]
[ECO "A27"]
[WhiteElo "2250"]
[BlackElo "1882"]
[Annotator "NA"]
[PlyCount "85"]
[EventDate "2019.06.30"]
[EventType "swiss"]
[EventCountry "IND"]
[SourceTitle "playchess.com"]
[Source "ChessBase"]
[SourceQuality "1"]
[TimeControl "5400+30"]

1. c4 {[%emt 0:00:11]} e5 {[%emt 0:05:37]} 2. Nc3 {[%emt 0:01:57]} Nc6 {[%emt 0:02:08]} 3. Nf3 {[%emt 0:02:17]} Bb4 {[%emt 0:01:34]} 4. Qc2 {[%emt 0:04:04]} a5 {[%emt 0:02:05]} 5. e3 {[%emt 0:02:54]} d6 {[%emt 0:02:14]} 6. Be2 {[%emt 0:04:31]} Nge7 {[%emt 0:07:43]} 7. O-O {[%emt 0:00:50]} Bf5 {[%emt 0:06:07]} 8. d3 {[%emt 0:00:22]} O-O {[%emt 0:00:45]} 9. b3 {[%emt 0:01:29]} Bg6 {[%emt 0:04:22]} 10. Bb2 {[%emt 0:21:07]} d5 {[%emt 0:18:50]} 11. cxd5 {[%emt 0:10:19]} Nxd5 {[%emt 0:00:01]} 12. Nxd5 {[%emt 0:02:35]} Qxd5 {[%emt 0:00:12]} 13. Nh4 {[%emt 0:00:06]} Rfd8 {[%emt 0:09:09]} 14. Nxg6 {[%emt 0:00:58]} hxg6 {[%emt 0:00:01]} 15. a3 {[%emt 0:00:06]} Be7 {[%emt 0:01:39]} 16. Rac1 {[%emt 0:00:11]} Qe6 {[%emt 0:02:44]} 17. Rfd1 {[%emt 0:13:06]} Bf6 {[%emt 0:01:44]} 18. Bf3 {[%emt 0:04:35]} Ra6 {[%emt 0:01:29]} 19. Rb1 {[%emt 0:02:48]} Rb6 {[%emt 0:02:09]} 20. Bc3 {[%emt 0:02:18]} Be7 {[%emt 0:04:25]} 21. d4 {[%emt 0:03:34]} exd4 {[%emt 0:11:16]} 22. exd4 {[%emt 0:00:08]} Rb5 {[%emt 0:05:06]} 23. d5 {[%emt 0:03:03]} Rbxd5 {[%emt 0:00:01]} 24. Bxd5 {[%emt 0:00:59]} Rxd5 {[%emt 0:00:02]} 25. Rxd5 {[%emt 0:01:05]} Qxd5 {[%emt 0:00:01]} 26. Bb2 {[%emt 0:02:22]} Bd6 {[%emt 0:02:17]} 27. Re1 {[%emt 0:00:16]} Ne5 {[%emt 0:02:29]} 28. Rd1 {[%emt 0:07:18]} Qe6 {[%emt 0:02:07]} 29. h3 {[%emt 0:02:58]} b6 {[%emt 0:01:35]} 30. Qe2 {[%emt 0:02:27]} Qf5 {[%emt 0:01:29]} 31. Bxe5 {[%emt 0:01:26]} Bxe5 {[%emt 0:01:07]} 32. a4 {[%emt 0:00:50]} Bd6 {[%emt 0:01:09]} 33. Rd3 {[%emt 0:00:45]} Qf4 {[%emt 0:01:18]} 34. g3 {[%emt 0:00:13]} Qf5 {[%emt 0:00:36]} 35. Kg2 {[%emt 0:00:06]} g5 {[%emt 0:00:46]} 36. Qe8+ {[%emt 0:00:41]} Bf8 {[%emt 0:00:32]} 37. Rd8 {[%emt 0:01:10]} Qc5 {[%emt 0:00:01]} 38. Qd7 {[%emt 0:00:21]} Qb4 {[%emt 0:01:30]} 39. Qxc7 {[%emt 0:00:31]} Qe4+ {[%emt 0:00:35]} 40. Kh2 {[%emt 0:00:06]} g4 {[%emt 0:00:26]} 41. Qd6 {[%emt 0:01:33]} Qf3 {[%emt 0:00:34]} 42. Rxf8+ {[%emt 0:00:31]} Kh7 {[%emt 0:00:26]} 43. Qf4 {[%emt 0:00:07]} 1-0

[Event "Commonwealth Open 2019"]
[Site "Delhi"]
[Date "2019.07.01"]
[Round "3.22"]
[White "Sanjeet, Manohar"]
[Black "Bhambure, Shantanu"]
[Result "0-1"]
[ECO "A05"]
[WhiteElo "1905"]
[BlackElo "2248"]
[Annotator "NA"]
[PlyCount "74"]
[EventDate "2019.06.30"]
[EventType "swiss"]
[EventCountry "IND"]
[SourceTitle "playchess.com"]
[Source "ChessBase"]
[SourceQuality "1"]
[TimeControl "5400+30"]

1. Nf3 {[%emt 0:00:00]} Nf6 {[%emt 0:00:00]} 2. g3 {[%emt 0:00:00]} b5 {[%emt 0:00:00]} 3. Bg2 {[%emt 0:02:09]} Bb7 {[%emt 0:00:03]} 4. O-O {[%emt 0:00:40]} e6 {[%emt 0:00:50]} 5. d4 {[%emt 0:01:25]} c5 {[%emt 0:01:12]} 6. a4 {[%emt 0:02:15]} b4 {[%emt 0:04:55]} 7. Nbd2 {[%emt 0:12:09]} d5 {[%emt 0:03:39]} 8. c4 {[%emt 0:05:34]} Nbd7 {[%emt 0:17:59]} 9. a5 {[%emt 0:08:39]} Rc8 {[%emt 0:04:42]} 10. Re1 {[%emt 0:12:04]} cxd4 {[%emt 0:16:33]} 11. Nxd4 {[%emt 0:04:47]} Be7 {[%emt 0:02:23]} 12. cxd5 {[%emt 0:13:47]} Nxd5 {[%emt 0:01:55]} 13. e4 {[%emt 0:00:51]} N5f6 {[%emt 0:02:06]} 14. Nf1 {[%emt 0:05:51]} O-O {[%emt 0:04:55]} 15. e5 {[%emt 0:05:04]} Nd5 {[%emt 0:00:24]} 16. Qg4 {[%emt 0:00:41]} Kh8 {[%emt 0:04:33]} 17. Nf3 {[%emt 0:05:32]} Nc5 {[%emt 0:07:52]} 18. Bg5 {[%emt 0:01:26]} h6 {[%emt 0:04:28]} 19. Bxe7 {[%emt 0:00:43]} Qxe7 {[%emt 0:00:06]} 20. Ne3 {[%emt 0:01:04]} Nd3 {[%emt 0:03:28]} 21. Nxd5 {[%emt 0:01:54]} Bxd5 {[%emt 0:00:15]} 22. Re2 {[%emt 0:01:22]} Rc4 {[%emt 0:02:02]} 23. Qh5 {[%emt 0:00:39]} Qc5 {[%emt 0:03:47]} 24. h4 {[%emt 0:01:22]} Rc1+ {[%emt 0:04:16]} 25. Rxc1 {[%emt 0:00:04]} Qxc1+ {[%emt 0:00:11]} 26. Kh2 {[%emt 0:00:08]} Nxb2 {[%emt 0:01:23]} 27. Ng5 {[%emt 0:00:48]} Bxg2 {[%emt 0:02:08]} 28. Kxg2 {[%emt 0:00:02]} Kg8 {[%emt 0:00:27]} 29. Ne4 {[%emt 0:00:18]} Nc4 {[%emt 0:01:49]} 30. Qg4 {[%emt 0:02:35]} b3 {[%emt 0:01:43]} 31. Nf6+ {[%emt 0:00:28]} Kh8 {[%emt 0:00:01]} 32. Nh5 {[%emt 0:02:48]} Rg8 {[%emt 0:01:23]} 33. Re4 {[%emt 0:00:05]} Nd2 {[%emt 0:01:53]} 34. Rf4 {[%emt 0:00:08]} b2 {[%emt 0:01:08]} 35. Rxf7 {[%emt 0:02:36]} b1=Q {[%emt 0:00:18]} 36. Qxg7+ {[%emt 0:01:05]} Rxg7 {[%emt 0:00:05]} 37. Rf8+ {[%emt 0:00:04]} Rg8 {[%emt 0:00:15]} 0-1

[Event "Commonwealth Open 2019"]
[Site "Delhi"]
[Date "2019.07.01"]
[Round "3.23"]
[White "Savanth Krishnan R"]
[Black "Rosh Jain"]
[Result "1-0"]
[ECO "B20"]
[WhiteElo "1001"]
[BlackElo "1510"]
[Annotator "NA"]
[PlyCount "113"]
[EventDate "2019.06.30"]
[EventType "swiss"]
[EventCountry "IND"]
[SourceTitle "playchess.com"]
[Source "ChessBase"]
[SourceQuality "1"]
[TimeControl "5400+30"]

1. e4 {[%emt 0:00:00]} c5 {[%emt 0:00:00]} 2. d3 {[%emt 0:00:00]} e6 {[%emt 0:00:16]} 3. Nf3 {[%emt 0:01:39]} Nc6 {[%emt 0:00:08]} 4. g3 {[%emt 0:00:49]} d5 {[%emt 0:00:25]} 5. exd5 {[%emt 0:00:27]} exd5 {[%emt 0:00:11]} 6. Nc3 {[%emt 0:00:31]} Nf6 7. Bg2 {[%emt 0:00:27]} Be7 {[%emt 0:02:11]} 8. O-O {[%emt 0:03:07]} Be6 {[%emt 0:03:49]} 9. d4 {[%emt 0:01:36]} O-O {[%emt 0:00:27]} 10. Be3 {[%emt 0:01:01]} c4 {[%emt 0:05:44]} 11. Ne2 {[%emt 0:01:21]} Ng4 {[%emt 0:09:16]} 12. Bd2 {[%emt 0:01:28]} b5 {[%emt 0:02:13]} 13. h3 {[%emt 0:01:45]} Nf6 {[%emt 0:00:22]} 14. Nf4 {[%emt 0:00:45]} Bd6 {[%emt 0:12:02]} 15. Nxe6 {[%emt 0:02:46]} fxe6 {[%emt 0:05:26]} 16. Bg5 h6 {[%emt 0:01:51]} 17. Bxf6 {[%emt 0:01:13]} Qxf6 {[%emt 0:00:20]} 18. c3 {[%emt 0:00:42]} Rad8 {[%emt 0:00:54]} 19. Qc2 {[%emt 0:01:48]} e5 {[%emt 0:08:14]} 20. Nxe5 {[%emt 0:01:37]} Bxe5 {[%emt 0:01:01]} 21. dxe5 {[%emt 0:00:26]} Nxe5 {[%emt 0:00:08]} 22. a4 {[%emt 0:01:03]} Nd3 {[%emt 0:03:02]} 23. axb5 {[%emt 0:01:10]} Qb6 {[%emt 0:00:33]} 24. b3 {[%emt 0:01:17]} Rf5 {[%emt 0:02:09]} 25. bxc4 dxc4 {[%emt 0:00:14]} 26. Be4 {[%emt 0:02:37]} Rg5 {[%emt 0:02:32]} 27. Kh2 {[%emt 0:00:34]} Rxb5 {[%emt 0:05:54]} 28. Qa4 {[%emt 0:02:49]} Rc8 {[%emt 0:07:59]} 29. Ra2 {[%emt 0:14:17]} Rc7 {[%emt 0:05:44]} 30. Rd2 {[%emt 0:01:18]} Nb2 {[%emt 0:13:38]} 31. Rxb2 {[%emt 0:00:57]} a6 {[%emt 0:01:00]} 32. Rxb5 {[%emt 0:01:02]} Qxb5 {[%emt 0:00:19]} 33. Qxb5 {[%emt 0:00:39]} axb5 {[%emt 0:00:09]} 34. Rb1 {[%emt 0:00:14]} Rc5 {[%emt 0:00:18]} 35. Kg2 {[%emt 0:00:37]} Re5 {[%emt 0:00:20]} 36. Bc6 {[%emt 0:00:17]} Kh8 {[%emt 0:00:21]} 37. Rxb5 {[%emt 0:00:12]} Rxb5 {[%emt 0:00:12]} 38. Bxb5 {[%emt 0:00:05]} g5 {[%emt 0:00:09]} 39. Bxc4 {[%emt 0:00:06]} Kg7 {[%emt 0:00:05]} 40. Bd5 {[%emt 0:00:13]} Kf6 {[%emt 0:00:07]} 41. c4 {[%emt 0:00:07]} Ke5 {[%emt 0:00:11]} 42. Kf3 {[%emt 0:00:21]} h5 {[%emt 0:00:07]} 43. Bf7 {[%emt 0:00:15]} g4+ {[%emt 0:00:05]} 44. hxg4 {[%emt 0:00:07]} h4 {[%emt 0:00:04]} 45. gxh4 {[%emt 0:00:20]} Kf6 {[%emt 0:00:09]} 46. Bd5 {[%emt 0:00:17]} Ke5 {[%emt 0:00:27]} 47. h5 {[%emt 0:00:08]} Kf6 {[%emt 0:00:07]} 48. c5 {[%emt 0:00:06]} Ke5 {[%emt 0:00:06]} 49. h6 {[%emt 0:00:13]} Kxd5 {[%emt 0:00:05]} 50. h7 {[%emt 0:00:07]} Kxc5 {[%emt 0:00:09]} 51. h8=Q {[%emt 0:00:14]} Kd5 {[%emt 0:00:30]} 52. g5 {[%emt 0:00:30]} Ke6 {[%emt 0:00:00]} 53. g6 {[%emt 0:00:00]} Ke7 {[%emt 0:00:00]} 54. g7 {[%emt 0:00:00]} Kf7 {[%emt 0:00:00]} 55. g8=Q+ {[%emt 0:00:02]} Ke7 {[%emt 0:00:00]} 56. Qe5+ {[%emt 0:00:11]} Kd7 {[%emt 0:00:06]} 57. Qge8# {[%emt 0:00:07]} 1-0

[Event "Commonwealth Open 2019"]
[Site "Delhi"]
[Date "2019.07.01"]
[Round "3.27"]
[White "Madhavansh Mittal"]
[Black "Ilamparthi A R"]
[Result "0-1"]
[ECO "E62"]
[WhiteElo "1283"]
[BlackElo "2036"]
[Annotator "NA"]
[PlyCount "60"]
[EventDate "2019.06.30"]
[EventType "swiss"]
[EventCountry "IND"]
[SourceTitle "playchess.com"]
[Source "ChessBase"]
[SourceQuality "1"]
[TimeControl "5400+30"]

1. d4 {[%emt 0:00:47]} Nf6 {[%emt 0:00:00]} 2. c4 {[%emt 0:00:17]} g6 {[%emt 0:00:01]} 3. g3 {[%emt 0:00:06]} Bg7 {[%emt 0:00:08]} 4. Bg2 {[%emt 0:00:15]} O-O {[%emt 0:00:09]} 5. Nc3 {[%emt 0:00:13]} d6 {[%emt 0:00:18]} 6. Nf3 {[%emt 0:00:18]} Nc6 {[%emt 0:00:35]} 7. O-O {[%emt 0:00:53]} e5 {[%emt 0:00:14]} 8. dxe5 {[%emt 0:03:10]} dxe5 {[%emt 0:00:19]} 9. Bg5 {[%emt 0:05:47]} Be6 {[%emt 0:12:34]} 10. Nd2 {[%emt 0:11:53]} h6 {[%emt 0:02:29]} 11. Bxf6 {[%emt 0:00:22]} Bxf6 {[%emt 0:00:33]} 12. Nd5 {[%emt 0:12:23]} Bg7 {[%emt 0:02:41]} 13. e4 {[%emt 0:05:46]} Nd4 {[%emt 0:01:08]} 14. Nb3 {[%emt 0:00:49]} c6 {[%emt 0:00:20]} 15. Ne3 {[%emt 0:01:55]} Qb6 {[%emt 0:02:08]} 16. Qd3 {[%emt 0:07:19]} Rfd8 {[%emt 0:01:22]} 17. Nc2 {[%emt 0:15:03]} Nxb3 {[%emt 0:01:37]} 18. Qxb3 {[%emt 0:00:16]} Rd2 {[%emt 0:00:46]} 19. Rac1 {[%emt 0:06:32]} Bf8 {[%emt 0:07:09]} 20. Qc3 {[%emt 0:02:19]} Rad8 {[%emt 0:03:33]} 21. b3 {[%emt 0:04:58]} f6 {[%emt 0:10:11]} 22. a3 {[%emt 0:02:34]} R8d3 {[%emt 0:01:21]} 23. Qa1 {[%emt 0:01:06]} Rxb3 {[%emt 0:01:12]} 24. Ne1 {[%emt 0:08:59]} Rxa3 {[%emt 0:02:35]} 25. Qb1 {[%emt 0:00:21]} Rb2 {[%emt 0:00:08]} 26. Qxb2 {[%emt 0:00:52]} Qxb2 {[%emt 0:00:16]} 27. Rc2 {[%emt 0:00:05]} Qb3 {[%emt 0:00:08]} 28. f4 {[%emt 0:01:05]} Bc5+ {[%emt 0:00:14]} 29. Kh1 {[%emt 0:00:11]} Bxc4 {[%emt 0:00:09]} 30. Rf3 {[%emt 0:00:09]} Qb1 {[%emt 0:00:11]} 0-1

[Event "Commonwealth Open 2019"]
[Site "Delhi"]
[Date "2019.07.01"]
[Round "3.28"]
[White "Bharadia Yash"]
[Black "Rupankar Kundu"]
[Result "1-0"]
[ECO "C74"]
[WhiteElo "1942"]
[BlackElo "1277"]
[Annotator "NA"]
[PlyCount "135"]
[EventDate "2019.06.30"]
[EventType "swiss"]
[EventCountry "IND"]
[SourceTitle "playchess.com"]
[Source "ChessBase"]
[SourceQuality "1"]
[TimeControl "5400+30"]

1. e4 {[%emt 0:00:00]} e5 {[%emt 0:01:42]} 2. Nf3 {[%emt 0:00:00]} Nc6 {[%emt 0:00:19]} 3. Bb5 {[%emt 0:00:00]} a6 {[%emt 0:01:14]} 4. Ba4 {[%emt 0:00:19]} d6 {[%emt 0:00:57]} 5. c3 {[%emt 0:03:42]} Nf6 {[%emt 0:02:46]} 6. Bc2 {[%emt 0:01:31]} Be7 {[%emt 0:01:27]} 7. O-O {[%emt 0:00:58]} O-O {[%emt 0:04:21]} 8. h3 {[%emt 0:00:20]} b5 {[%emt 0:11:24]} 9. Re1 {[%emt 0:01:17]} Bb7 {[%emt 0:02:35]} 10. a3 {[%emt 0:05:45]} Nb8 {[%emt 0:09:10]} 11. d4 {[%emt 0:00:39]} Nbd7 {[%emt 0:07:08]} 12. Nbd2 {[%emt 0:00:39]} Re8 {[%emt 0:00:24]} 13. Nf1 {[%emt 0:00:27]} Bf8 {[%emt 0:00:11]} 14. Ng3 {[%emt 0:00:31]} g6 15. Bg5 {[%emt 0:06:49]} Bg7 {[%emt 0:05:01]} 16. Qd2 {[%emt 0:01:29]} Nb6 {[%emt 0:11:32]} 17. b3 {[%emt 0:04:58]} Qd7 {[%emt 0:03:25]} 18. Rad1 {[%emt 0:01:33]} Rad8 {[%emt 0:00:11]} 19. Bh6 {[%emt 0:06:50]} Qe7 {[%emt 0:08:24]} 20. Bxg7 {[%emt 0:01:04]} Kxg7 {[%emt 0:00:29]} 21. Qg5 {[%emt 0:01:10]} Kf8 {[%emt 0:12:31]} 22. dxe5 {[%emt 0:11:57]} dxe5 {[%emt 0:00:26]} 23. Rxd8 {[%emt 0:00:53]} Rxd8 {[%emt 0:04:36]} 24. Nxe5 {[%emt 0:02:39]} Re8 {[%emt 0:04:31]} 25. f4 {[%emt 0:03:36]} Qc5+ {[%emt 0:00:26]} 26. Kh2 {[%emt 0:00:33]} Nbd7 {[%emt 0:06:15]} 27. Nxd7+ {[%emt 0:06:35]} Nxd7 {[%emt 0:00:01]} 28. Qxc5+ {[%emt 0:03:25]} Nxc5 {[%emt 0:00:02]} 29. Re2 {[%emt 0:03:52]} Rd8 {[%emt 0:00:21]} 30. Nf1 {[%emt 0:04:40]} Ke7 {[%emt 0:01:21]} 31. Kg3 {[%emt 0:01:22]} Rd6 {[%emt 0:01:37]} 32. Kf2 {[%emt 0:01:48]} Nd7 {[%emt 0:00:33]} 33. Rd2 {[%emt 0:01:52]} Rc6 {[%emt 0:00:32]} 34. Rd3 {[%emt 0:01:03]} Rf6 {[%emt 0:00:34]} 35. g3 {[%emt 0:03:03]} Nc5 {[%emt 0:00:26]} 36. Re3 {[%emt 0:00:16]} Re6 {[%emt 0:00:26]} 37. Nd2 {[%emt 0:00:35]} Rd6 {[%emt 0:00:21]} 38. Ke2 {[%emt 0:00:58]} Bc8 {[%emt 0:00:16]} 39. g4 {[%emt 0:00:21]} Ne6 {[%emt 0:00:19]} 40. Rf3 {[%emt 0:01:13]} Bb7 {[%emt 0:00:57]} 41. f5 {[%emt 0:01:26]} Ng5 {[%emt 0:00:44]} 42. Re3 {[%emt 0:00:21]} h6 {[%emt 0:00:29]} 43. e5 {[%emt 0:00:58]} Rd8 {[%emt 0:00:14]} 44. h4 {[%emt 0:00:44]} Nh7 {[%emt 0:00:21]} 45. fxg6 {[%emt 0:00:21]} fxg6 {[%emt 0:00:02]} 46. Bxg6 {[%emt 0:00:21]} Nf8 {[%emt 0:00:04]} 47. Bf5 {[%emt 0:07:31]} Ne6 {[%emt 0:00:23]} 48. Bxe6 {[%emt 0:02:41]} Kxe6 {[%emt 0:00:03]} 49. b4 {[%emt 0:02:00]} Bd5 {[%emt 0:00:22]} 50. Kf2 {[%emt 0:02:35]} Rf8+ {[%emt 0:00:44]} 51. Kg3 {[%emt 0:00:07]} c6 {[%emt 0:00:37]} 52. Nf3 {[%emt 0:03:12]} h5 {[%emt 0:01:54]} 53. Nd4+ {[%emt 0:00:50]} Ke7 {[%emt 0:00:12]} 54. gxh5 {[%emt 0:00:21]} Rh8 {[%emt 0:00:31]} 55. Kg4 {[%emt 0:01:01]} Rg8+ {[%emt 0:00:05]} 56. Kf5 {[%emt 0:00:16]} Rh8 {[%emt 0:00:14]} 57. Kg5 {[%emt 0:01:09]} Rg8+ {[%emt 0:00:03]} 58. Kh6 {[%emt 0:00:17]} Rh8+ {[%emt 0:00:08]} 59. Kg6 {[%emt 0:00:12]} Bf7+ {[%emt 0:01:10]} 60. Kg7 {[%emt 0:00:23]} Rg8+ {[%emt 0:00:06]} 61. Kh7 {[%emt 0:00:16]} Rg4 {[%emt 0:00:41]} 62. Nxc6+ {[%emt 0:00:23]} Kf8 {[%emt 0:00:08]} 63. e6 {[%emt 0:00:23]} Bxh5 {[%emt 0:00:08]} 64. e7+ {[%emt 0:00:23]} Ke8 {[%emt 0:00:03]} 65. Kh6 {[%emt 0:01:27]} Rxh4 {[%emt 0:00:31]} 66. Kg5 {[%emt 0:00:06]} Rh1 {[%emt 0:00:05]} 67. Rd3 {[%emt 0:00:14]} Rd1 {[%emt 0:00:07]} 68. Rd8+ {[%emt 0:00:05]} 1-0